bitfinex/quotes_BTCUSD_20220204
["timestamp","ask_amount","ask_price","bid_price","bid_amount"]
[1643954948480,0.34032325,37868.0,37862.0,0.00098143]
[1643954948682,0.08370723,37867.0,37862.0,0.00098143]
[1643954948886,0.08370723,37867.0,37855.0,0.05]
[1643954948887,0.34094294,37866.0,37855.0,0.05]
[1643954949082,0.34094294,37866.0,37863.0,0.00098142]
[1643954949083,0.03501621,37864.0,37863.0,0.00098142]
[1643954949283,1.55,37863.0,37857.0,0.00392625]
[1643954949485,1.93303591,37863.0,37857.0,0.00392625]
[1643954949683,0.25038836,37862.0,37857.0,0.00392625]
[1643954949884,0.33303591,37866.0,37861.0,0.21498379]
[1643954949885,0.28303591,37866.0,37861.0,0.21498379]
[1643954950085,0.28303591,37866.0,37856.0,0.05561948]
[1643954950086,0.28303591,37870.0,37865.0,0.05]
[1643954950283,0.35971269,37871.0,37868.0,0.05]
[1643954950284,0.3033581,37871.0,37868.0,0.05]
[1643954950485,0.02032219,37871.0,37870.0,0.05]
[1643954950883,0.24860978,37871.0,37864.0,0.05]
[1643954951148,0.28303591,37868.0,37859.0,0.34094294]
[1643954951347,0.24860978,37871.0,37858.0,0.1]
[1643954951348,0.22649148,37865.0,37858.0,0.05]
[1643954951551,0.04999999,37862.0,37855.0,0.00098433]
[1643954951748,0.04999999,37862.0,37856.0,0.09760907]
[1643954951948,0.25270552,37861.0,37856.0,0.25129643]
[1643954952147,0.25270552,37861.0,37855.0,0.00098433]
[1643954952347,0.25270552,37861.0,37852.0,0.34094294]
[1643954952548,0.00098407,37860.0,37855.0,0.11596799]
[1643954953147,0.00098407,37860.0,37856.0,0.2184502]
[1643954953546,0.25270552,37861.0,37856.0,0.2184502]
[1643954953747,0.00098407,37860.0,37855.0,0.0009842]
[1643954954050,0.00098407,37860.0,37851.0,0.33505407]
[1643954954051,0.2525532,37855.0,37851.0,0.01]
[1643954954252,0.00098407,37860.0,37851.0,0.01]
[1643954954651,0.00098407,37860.0,37855.0,0.22912368]
[1643954954889,0.93213327,37864.0,37851.0,0.01]
[1643954954890,0.22548583,37856.0,37851.0,0.01]
[1643954955083,0.27548582,37856.0,37851.0,0.01]
[1643954955287,0.22548583,37856.0,37851.0,0.01]
[1643954955684,0.15089591,37865.0,37855.0,0.55]
[1643954955888,0.33921546,37884.0,37871.0,0.00674429]
[1643954956089,0.51063475,37901.0,37884.0,1.55]
[1643954956090,0.0011,37901.0,37884.0,1.55]
[1643954956289,0.50953475,37913.0,37900.0,0.15]
[1643954956487,0.0011,37917.0,37906.0,0.14228379]
[1643954956686,0.0011,37917.0,37907.0,0.95]
[1643954956896,0.0011,37917.0,37909.0,0.34083363]
[1643954956897,0.00119467,37911.0,37909.0,0.34083363]
[1643954957090,0.0011,37917.0,37911.0,1.746451]
[1643954957287,0.0011,37917.0,37913.0,0.0489]
[1643954957486,0.0011,37917.0,37913.0,0.71359394]
[1643954957687,0.0011,37917.0,37913.0,0.372651]
[1643954957888,0.0011,37917.0,37913.0,0.56691118]
[1643954958087,0.0011,37917.0,37913.0,0.372651]
[1643954958289,0.00890801,37918.0,37913.0,0.372651]
[1643954958290,0.00414555,37918.0,37913.0,0.372651]
[1643954958489,0.00023312,37918.0,37917.0,0.0162]
[1643954958734,0.00023312,37918.0,37917.0,0.0158]
[1643954958934,0.05023311,37918.0,37916.0,0.08318379]
[1643954959136,0.05023311,37918.0,37905.0,0.0158]
[1643954959336,0.05023311,37918.0,37906.0,0.5]
[1643954959337,0.04999999,37915.0,37906.0,0.5]
[1643954959539,0.01,37917.0,37894.0,0.34094294]
[1643954959938,0.09342936,37909.0,37899.0,0.09999284]
[1643954960137,0.00097774,37912.0,37902.0,0.05]
[1643954960337,0.00097774,37912.0,37900.0,0.68739394]
[1643954960338,0.00091774,37912.0,37905.0,0.05]
[1643954960542,0.00073774,37912.0,37906.0,0.5494169]
[1643954960736,0.00055774,37912.0,37906.0,0.5494169]
[1643954961036,0.08538237,37911.0,37902.0,0.34094294]
[1643954961235,0.08538237,37911.0,37899.0,0.346451]
[1643954961236,0.08526237,37911.0,37899.0,0.346451]
[1643954961440,0.04999999,37905.0,37897.0,0.05]
[1643954961736,0.04988783,37904.0,37891.0,0.34094294]
[1643954961935,0.04988783,37902.0,37899.0,0.00011216]
[1643954962137,0.08104392,37901.0,37899.0,0.00011216]
[1643954962388,0.13093175,37901.0,37899.0,0.00011216]
[1643954962586,0.065987,37916.0,37899.0,0.00011216]
[1643954962791,0.56,37917.0,37891.0,0.36258539]
[1643954963089,0.56,37917.0,37895.0,0.00017216]
[1643954963090,0.9990225,37916.0,37895.0,0.00017216]
[1643954963389,0.13198671,37907.0,37891.0,0.02164245]
[1643954963686,0.04982783,37892.0,37891.0,0.02164245]
[1643954963887,0.08157503,37895.0,37891.0,0.02181461]
[1643954964086,0.04982783,37892.0,37891.0,0.02164245]
[1643954964285,0.08157503,37895.0,37891.0,0.27452376]
[1643954964485,0.08157503,37895.0,37894.0,0.00017216]
[1643954964690,0.00391256,37899.0,37894.0,0.00017216]
[1643954964888,0.00391256,37899.0,37898.0,0.00017216]
[1643954965687,0.04982783,37901.0,37898.0,0.19865493]
[1643954966136,0.17266129,37904.0,37893.0,0.00017216]
[1643954966137,0.0746786,37904.0,37893.0,0.00017216]
[1643954966435,0.04982783,37900.0,37896.0,0.00017216]
[1643954966634,0.04982783,37900.0,37899.0,0.00017216]
[1643954967133,0.26669931,37901.0,37899.0,0.00017216]
[1643954967337,0.04982783,37901.0,37900.0,0.00017216]
[1643954968134,0.04982783,37901.0,37896.0,0.23332743]
[1643954968334,0.04982783,37899.0,37896.0,0.23332743]
[1643954968536,0.25919929,37900.0,37896.0,0.23332743]
[1643954968735,0.25919929,37900.0,37895.0,0.0395185]
[1643954968736,0.25919928,37900.0,37895.0,0.01913319]
[1643954969735,0.25919928,37900.0,37896.0,0.23116212]
[1643954969990,0.09796499,37901.0,37899.0,0.04999999]
[1643954971990,0.09796499,37901.0,37900.0,1.846451]
[1643954972188,0.00391215,37908.0,37900.0,0.64448485]
[1643954972387,0.00391215,37908.0,37907.0,0.04999999]
[1643954972591,0.00391215,37908.0,37907.0,0.39645099]
[1643954972787,0.09799471,37917.0,37907.0,0.04999999]
[1643954972990,0.29863984,37908.0,37906.0,0.04999999]
[1643954973188,0.29863984,37908.0,37904.0,0.04999999]
[1643954973389,0.3126432,37913.0,37903.0,0.26032414]
[1643954973637,0.3126432,37913.0,37904.0,0.04999999]
[1643954973833,0.3126432,37913.0,37903.0,0.26032414]
[1643954974434,0.30005232,37907.0,37903.0,0.26032414]
[1643954974633,0.30005232,37907.0,37902.0,0.07043032]
[1643954974834,0.30005232,37907.0,37898.0,0.04999999]
[1643954975033,0.30005232,37907.0,37899.0,0.346451]
[1643954975238,0.08782793,37901.0,37899.0,0.346451]
[1643954975837,0.30005232,37907.0,37900.0,0.04999999]
[1643954976035,0.30005232,37907.0,37897.0,0.31654176]
[1643954976237,0.00391201,37911.0,37897.0,0.26654177]
[1643954976439,0.06615712,37918.0,37897.0,0.60385647]
[1643954976440,0.32050593,37915.0,37897.0,0.60385647]
[1643954976636,0.14799471,37917.0,37903.0,0.19622857]
[1643954976836,0.09319948,37899.0,37897.0,0.3373147]
[1643954977040,0.09319948,37899.0,37897.0,0.346451]
[1643954977390,0.26392677,37904.0,37898.0,0.04999999]
[1643954977592,0.26392677,37904.0,37899.0,0.346451]
[1643954977795,0.26392677,37904.0,37896.0,0.06905241]
[1643954977796,0.26392677,37904.0,37897.0,0.3373147]
[1643954978092,0.26392677,37904.0,37897.0,0.346451]
[1643954978291,0.0971481,37903.0,37898.0,0.38731469]
[1643954978492,0.0971481,37903.0,37896.0,0.01905242]
[1643954978693,0.0971481,37903.0,37896.0,0.03744762]
[1643954978892,0.0971481,37903.0,37898.0,0.2317939]
[1643954979093,0.0971481,37903.0,37896.0,0.0183952]
[1643954979494,0.30010409,37901.0,37896.0,0.0183952]
[1643954980898,0.40010409,37901.0,37896.0,0.0183952]
[1643954981340,0.30010409,37901.0,37896.0,0.0183952]
[1643954981539,0.28760855,37897.0,37896.0,0.0183952]
[1643954981739,0.37681071,37897.0,37896.0,0.0183952]
[1643954982743,0.30010409,37901.0,37896.0,0.0183952]
[1643954982943,0.30010409,37901.0,37891.0,0.08759312]
[1643954982944,0.00391232,37904.0,37897.0,0.22478614]
[1643954983145,0.00391232,37904.0,37894.0,0.38731469]
[1643954983542,0.00391232,37904.0,37891.0,0.01890489]
[1643954983741,0.20624868,37913.0,37891.0,0.35621959]
[1643954983742,0.22464882,37895.0,37891.0,0.35621959]
[1643954983944,0.09063486,37894.0,37891.0,0.01890489]
[1643954984142,0.0039122,37907.0,37891.0,0.21516981]
[1643954984343,0.0039122,37907.0,37892.0,0.31332416]
[1643954984542,0.33921491,37903.0,37892.0,0.31332416]
[1643954984740,0.33921491,37903.0,37891.0,0.21516981]
[1643954984987,0.26298848,37897.0,37891.0,0.19626492]
[1643954985186,0.08225912,37893.0,37890.0,0.04999999]
[1643954985392,0.20183966,37908.0,37886.0,0.74499477]
[1643954985393,0.39479311,37927.0,37912.0,0.15]
[1643954985591,0.02819348,37944.0,37927.0,1.55]
[1643954985800,0.00471147,37946.0,37932.0,0.02195]
[1643954985996,0.00471147,37946.0,37944.0,1.59889999]
[1643954986190,0.0039005,37952.0,37944.0,1.59889999]
[1643954986191,0.00091076,37961.0,37945.0,1.545]
[1643954986394,0.10192,37971.0,37952.0,0.15]
[1643954986589,0.00205276,37965.0,37957.0,0.04794723]
[1643954986789,0.00632597,37963.0,37958.0,0.346451]
[1643954986995,0.00205276,37959.0,37944.0,0.551734]
[1643954987294,0.00205276,37959.0,37939.0,0.04794723]
[1643954987295,0.57460192,37950.0,37940.0,0.3373147]
[1643954987490,0.57460192,37950.0,37940.0,0.38526193]
[1643954987491,0.21498841,37950.0,37940.0,0.38526193]
[1643954987688,0.00608531,37949.0,37941.0,0.346451]
[1643954987889,0.00608531,37949.0,37942.0,0.3373147]
[1643954988089,0.21498841,37950.0,37939.0,0.05]
[1643954988090,0.00205276,37943.0,37939.0,0.05]
[1643954988294,0.08418877,37945.0,37936.0,0.42]
[1643954988295,0.00205276,37940.0,37936.0,0.42]
[1643954988490,0.32522811,37938.0,37936.0,0.42]
[1643954988742,0.32728087,37938.0,37936.0,0.42]
[1643954989142,0.08431702,37937.0,37936.0,0.4189]
[1643954989542,0.32522811,37938.0,37936.0,0.4189]
[1643954989941,0.32620952,37938.0,37936.0,0.4189]
[1643954990344,0.00205276,37937.0,37936.0,0.4189]
[1643954990543,0.09757548,37937.0,37936.0,0.4189]
[1643954990745,0.38300253,37937.0,37932.0,0.01904598]
[1643954990950,0.00199276,37933.0,37932.0,0.01904598]
[1643954991144,0.09534272,37937.0,37932.0,0.01904598]
[1643954991644,0.09516272,37937.0,37932.0,0.01904598]
[1643954991845,0.00175276,37937.0,37933.0,0.04824723]
[1643954992043,0.05175276,37955.0,37932.0,0.01904598]
[1643954992044,0.29335735,37943.0,37935.0,0.04836723]
[1643954992244,0.29323735,37943.0,37936.0,0.2966261]
[1643954992493,0.00243419,37937.0,37932.0,0.01904598]
[1643954992695,0.00243419,37937.0,37932.0,0.03888978]
[1643954992696,0.00074143,37937.0,37932.0,0.03888978]
[1643954992896,0.00074143,37937.0,37932.0,0.0198438]
[1643954992897,1.05151276,37933.0,37932.0,0.0198438]
[1643954993099,1.05151276,37933.0,37920.0,0.34475708]
[1643954993100,0.00145276,37933.0,37920.0,0.34475708]
[1643954993293,0.00145276,37933.0,37909.0,0.42]
[1643954993294,0.24292032,37917.0,37915.0,0.05]
[1643954993501,0.34799718,37910.0,37909.0,0.34475708]
[1643954993695,0.05,37925.0,37909.0,0.69120808]
[1643954993894,0.0472126,37910.0,37902.0,0.00278739]
[1643954994093,0.3472126,37928.0,37905.0,0.00278739]
[1643954994094,0.14303146,37909.0,37905.0,0.00278739]
[1643954994296,0.5632,37927.0,37906.0,0.346451]
[1643954994495,0.0472126,37918.0,37909.0,0.00278739]
[1643954994693,0.34750484,37915.0,37909.0,0.00278739]
[1643954994894,0.34513806,37915.0,37909.0,0.00278739]
[1643954995093,0.0472126,37916.0,37909.0,0.00278739]
[1643954995294,0.25973287,37917.0,37905.0,0.00046078]
[1643954995600,0.0472126,37906.0,37905.0,0.00046078]
[1643954995793,0.0472126,37906.0,37900.0,0.00278739]
[1643954995794,0.14806859,37906.0,37900.0,0.00278739]
[1643954995995,0.14806859,37906.0,37902.0,0.00278739]
[1643954996240,0.14806859,37906.0,37900.0,0.00278739]
[1643954996438,0.10085599,37906.0,37900.0,0.00278739]
[1643954996637,0.28691859,37915.0,37902.0,0.00278739]
[1643954996638,0.0472126,37910.0,37902.0,0.00278739]
[1643954996836,0.0472126,37909.0,37902.0,0.00278739]
[1643954997035,0.0472126,37909.0,37903.0,0.346451]
[1643954997239,0.28691859,37915.0,37893.0,0.13193217]
[1643954997240,0.0472126,37904.0,37893.0,0.13193217]
[1643954997441,0.0472126,37904.0,37886.0,1.14469368]
[1643954997442,0.0472126,37895.0,37890.0,0.05]
[1643954997642,0.43073426,37908.0,37892.0,0.00278739]
[1643954997643,0.09134047,37901.0,37892.0,0.00278739]
[1643954997940,0.5704,37917.0,37890.0,0.05]
[1643954997941,0.0472126,37906.0,37897.0,0.00278739]
[1643954998238,0.0472126,37906.0,37890.0,0.05]
[1643954998239,0.0472126,37902.0,37895.0,0.00278739]
[1643954998539,0.34475708,37914.0,37890.0,0.05]
[1643954998540,0.0472126,37897.0,37890.0,0.05]
[1643954998743,0.0472126,37895.0,37890.0,0.05]
[1643954999539,0.07370414,37897.0,37893.0,0.0004602]
[1643954999738,0.0472126,37895.0,37893.0,0.0004602]
[1643954999985,0.0472126,37895.0,37894.0,0.63068617]
[1643955000189,0.0472126,37895.0,37894.0,0.072]
[1643955000387,0.0472126,37895.0,37893.0,0.0004602]
[1643955000594,0.0472126,37895.0,37890.0,0.05]
[1643955000785,0.07370414,37897.0,37893.0,0.00098155]
[1643955000986,0.0472126,37894.0,37893.0,0.00098155]
[1643955001186,0.56088973,37894.0,37893.0,0.00098155]
[1643955001787,0.56088973,37894.0,37885.0,0.00338942]
[1643955001987,0.38353714,37894.0,37892.0,0.00098156]
[1643955002185,0.0472126,37893.0,37892.0,0.00098156]
[1643955002387,0.36940835,37892.0,37883.0,0.0200339]
[1643955002586,0.0472126,37884.0,37883.0,0.3664849]
[1643955002787,0.0472126,37896.0,37884.0,0.11491711]
[1643955002989,0.0472126,37892.0,37886.0,0.00278739]
[1643955003186,0.0472126,37887.0,37886.0,0.34060446]
[1643955003387,0.0472126,37889.0,37886.0,0.00278739]
[1643955003649,0.0472126,37892.0,37886.0,0.00278739]
[1643955003843,0.08389425,37893.0,37891.0,0.2279031]
[1643955004046,0.08389425,37893.0,37885.0,0.34060446]
[1643955004243,0.13110685,37893.0,37890.0,0.00098085]
[1643955004743,0.08389425,37893.0,37890.0,0.00098085]
[1643955004944,0.0472126,37891.0,37890.0,0.00098085]
[1643955005343,0.0472126,37891.0,37884.0,0.11491711]
[1643955005546,0.0472126,37885.0,37884.0,0.11491711]
[1643955005947,0.0472126,37885.0,37872.0,0.05]
[1643955005948,0.4,37884.0,37872.0,0.05]
[1643955006152,0.0472126,37876.0,37867.0,0.00392574]
[1643955006345,0.08034853,37885.0,37873.0,0.20073147]
[1643955006549,0.2878756,37884.0,37873.0,0.20073147]
[1643955006744,0.0472126,37882.0,37874.0,0.346451]
[1643955006945,0.0472126,37882.0,37873.0,0.20073147]
[1643955006946,0.08227239,37877.0,37873.0,0.19573147]
[1643955007146,0.0472126,37881.0,37873.0,0.19573147]
[1643955007388,0.0472126,37879.0,37870.0,0.00098109]
[1643955007587,0.01930599,37885.0,37871.0,0.34423839]
[1643955007786,0.04999999,37879.0,37871.0,0.34423839]
[1643955007988,0.04999999,37879.0,37873.0,0.00098106]
[1643955008187,0.07898362,37876.0,37873.0,0.02598106]
[1643955008387,0.02499999,37880.0,37874.0,0.5356387]
[1643955008586,0.02499999,37880.0,37874.0,0.1890247]
[1643955008985,0.29833393,37877.0,37873.0,0.025]
[1643955009190,0.29833393,37877.0,37875.0,0.00098103]
[1643955009387,0.02499999,37880.0,37875.0,0.00098103]
[1643955009388,0.07997293,37879.0,37875.0,0.00098103]
[1643955009588,0.02499999,37876.0,37875.0,0.00098103]
[1643955009787,0.10497292,37879.0,37875.0,0.02598103]
[1643955009989,0.10497292,37879.0,37877.0,0.025]
[1643955010190,0.07997293,37879.0,37877.0,0.025]
[1643955010387,0.26737437,37885.0,37877.0,0.025]
[1643955010388,0.29237436,37885.0,37877.0,0.025]
[1643955010787,0.26737437,37885.0,37877.0,0.025]
[1643955010990,0.04439982,37889.0,37875.0,0.00098103]
[1643955011248,0.04439982,37889.0,37883.0,0.025]
[1643955011454,0.27360457,37884.0,37880.0,0.025]
[1643955011644,0.10021207,37885.0,37880.0,0.02545851]
[1643955011848,0.10021207,37885.0,37882.0,0.025]
[1643955012051,0.01939983,37889.0,37884.0,0.025]
[1643955012245,0.01939983,37889.0,37880.0,0.00045851]
[1643955012445,0.04439982,37889.0,37888.0,0.025]
[1643955012646,0.01939983,37889.0,37888.0,0.025]
[1643955012844,0.30761262,37894.0,37885.0,0.025]
[1643955012845,0.02499999,37893.0,37885.0,0.025]
[1643955013044,0.07800864,37890.0,37885.0,0.025]
[1643955013246,0.02499999,37886.0,37883.0,0.02545848]
[1643955013443,0.02499999,37886.0,37883.0,0.00045848]
[1643955013843,0.07800864,37890.0,37881.0,0.025]
[1643955014043,0.02499999,37888.0,37883.0,0.00045848]
[1643955014245,0.3727054,37889.0,37883.0,0.00045848]
[1643955014448,0.43838479,37893.0,37883.0,0.00045848]
[1643955014884,0.43838479,37893.0,37881.0,0.04999999]
[1643955014885,0.29198402,37889.0,37879.0,0.04999999]
[1643955015088,0.53812701,37894.0,37886.0,0.00098127]
[1643955015089,0.37950851,37888.0,37886.0,0.00098127]
[1643955015290,0.37950851,37888.0,37877.0,0.05]
[1643955015291,0.1,37888.0,37877.0,0.05]
[1643955015486,0.33635892,37887.0,37871.0,0.02112411]
[1643955015685,0.22811898,37888.0,37872.0,0.04999999]
[1643955015887,0.22811898,37888.0,37877.0,0.04999999]
[1643955016287,0.28449071,37884.0,37871.0,0.02112411]
[1643955016485,0.08967893,37883.0,37871.0,0.02112411]
[1643955016687,0.24875443,37883.0,37872.0,0.04999999]
[1643955016888,0.24875443,37883.0,37880.0,0.0003]
[1643955016889,0.27210279,37882.0,37880.0,0.0003]
[1643955017285,0.02037575,37891.0,37880.0,0.0003]
[1643955017887,0.10107839,37882.0,37880.0,0.0003]
[1643955018487,0.29161377,37881.0,37880.0,0.0003]
[1643955018742,0.69753182,37881.0,37880.0,0.0003]
[1643955018941,0.65990508,37881.0,37880.0,0.0003]
[1643955019141,0.29161377,37881.0,37880.0,0.0003]
[1643955020042,0.29161377,37881.0,37879.0,0.00098062]
[1643955020943,0.29161377,37881.0,37870.0,0.28773195]
[1643955021142,0.29161377,37881.0,37878.0,0.00098063]
[1643955021743,1.29161377,37881.0,37878.0,0.00098063]
[1643955022145,1.29161377,37881.0,37868.0,0.06854207]
[1643955022390,1.29161377,37881.0,37868.0,0.01854208]
[1643955022391,0.08397836,37869.0,37868.0,0.01854208]
[1643955022587,0.37146687,37880.0,37868.0,0.61639977]
[1643955022886,0.37146687,37880.0,37869.0,0.04999999]
[1643955022887,0.29729709,37871.0,37869.0,0.04999999]
[1643955023187,0.37146687,37880.0,37870.0,0.346614]
[1643955023387,1.36900782,37881.0,37872.0,0.04999999]
[1643955023586,0.08078355,37873.0,37872.0,0.04999999]
[1643955023985,0.2591561,37877.0,37872.0,0.28295203]
[1643955024786,0.2591561,37877.0,37873.0,0.00098069]
[1643955025789,0.2591561,37877.0,37863.0,0.07151087]
[1643955025790,0.30103188,37875.0,37863.0,0.07151087]
[1643955025989,0.30103188,37875.0,37863.0,0.02151088]
[1643955025990,0.27301435,37866.0,37863.0,0.02151088]
[1643955026839,0.23904835,37865.0,37863.0,0.02151088]
[1643955027039,0.08878917,37864.0,37863.0,0.02151088]
[1643955027240,0.08878917,37864.0,37863.0,0.02249169]
[1643955027940,0.06080478,37864.0,37863.0,0.02249169]
[1643955028343,0.12113357,37875.0,37863.0,0.02249169]
[1643955028344,0.02113357,37875.0,37863.0,0.02151088]
[1643955028542,0.02113357,37875.0,37867.0,0.04999999]
[1643955028742,0.02113357,37875.0,37869.0,0.04999999]
[1643955028942,1.0,37877.0,37869.0,0.04999999]
[1643955029142,0.26749581,37870.0,37869.0,0.04999999]
[1643955029343,0.36226139,37870.0,37864.0,0.04999999]
[1643955029543,0.09476558,37870.0,37864.0,0.04999999]
[1643955029744,0.09476558,37870.0,37868.0,0.00098075]
[1643955030596,0.09476558,37870.0,37863.0,0.0003]
[1643955030792,0.21960783,37869.0,37863.0,0.0003]
[1643955030992,0.09476558,37870.0,37867.0,0.00098076]
[1643955031297,0.29389667,37869.0,37867.0,0.00098076]
[1643955031894,0.29389667,37869.0,37863.0,0.0003]
[1643955032094,0.29389667,37869.0,37866.0,0.00098077]
[1643955033192,0.29389667,37869.0,37863.0,0.0003]
[1643955033393,0.29389667,37869.0,37866.0,0.00098078]
[1643955034239,0.29389667,37869.0,37863.0,0.0003]
[1643955034441,0.29389667,37869.0,37866.0,0.00098078]
[1643955034641,0.36586418,37868.0,37866.0,0.00098078]
[1643955035448,0.25864225,37867.0,37860.0,0.89195815]
[1643955035642,0.25864225,37867.0,37865.0,0.00098078]
[1643955035844,0.29092015,37866.0,37865.0,0.00098078]
[1643955036446,0.71092015,37866.0,37865.0,0.00098078]
[1643955036644,0.71092015,37866.0,37860.0,0.86695815]
[1643955036843,0.71092015,37866.0,37864.0,0.0009808]
[1643955036844,0.36214756,37865.0,37864.0,0.0009808]
[1643955037044,0.27128438,37865.0,37864.0,0.0009808]
[1643955037245,0.37128438,37865.0,37864.0,0.0009808]
[1643955037490,0.27128438,37865.0,37864.0,0.0009808]
[1643955037993,0.09150593,37864.0,37860.0,0.86695815]
[1643955038190,0.44684283,37864.0,37863.0,0.00098081]
[1643955038393,0.09150593,37864.0,37863.0,0.00098081]
[1643955039189,0.09150593,37864.0,37860.0,0.86673325]
[1643955039390,0.09150593,37864.0,37862.0,0.00098083]
[1643955039894,0.09150593,37864.0,37858.0,0.0002249]
[1643955039895,1.77645959,37859.0,37858.0,0.0002249]
[1643955040092,0.37645959,37859.0,37857.0,0.0002249]
[1643955040291,0.57645959,37859.0,37857.0,0.0002249]
[1643955040491,0.57645959,37859.0,37851.0,0.01941977]
[1643955040705,0.76405438,37852.0,37851.0,0.01941977]
[1643955041156,0.76405438,37852.0,37847.0,0.00024734]
[1643955041354,0.86405438,37852.0,37846.0,0.00388589]
[1643955041549,0.76405438,37852.0,37846.0,0.00388589]
[1643955042651,0.60112705,37852.0,37850.0,0.04999999]
[1643955043048,1.60112705,37852.0,37850.0,0.04999999]
[1643955044050,0.37534763,37851.0,37848.0,0.00024734]
[1643955044250,1.60112705,37852.0,37849.0,0.00045568]
[1643955044251,1.37122933,37852.0,37849.0,0.00045568]
[1643955044449,1.28211714,37852.0,37849.0,0.00045568]
[1643955045298,0.10149419,37851.0,37847.0,0.00024734]
[1643955045499,0.35175755,37850.0,37849.0,0.00098036]
[1643955046501,0.35175755,37850.0,37847.0,0.00024734]
[1643955046701,0.35175755,37850.0,37848.0,0.00098037]
[1643955046902,0.35175755,37850.0,37848.0,0.05098036]
[1643955047502,0.35577718,37850.0,37848.0,0.04598036]
[1643955048743,0.00401963,37850.0,37848.0,0.04598036]
[1643955049842,0.10149419,37851.0,37848.0,0.04598036]
[1643955050143,0.10149419,37851.0,37850.0,0.04598036]
[1643955050344,1.0,37852.0,37850.0,0.04598036]
[1643955051545,0.07679418,37851.0,37850.0,0.04598036]
[1643955051743,0.08081381,37851.0,37849.0,0.0003]
[1643955051944,0.07679418,37851.0,37849.0,0.0003]
[1643955052142,0.00401963,37850.0,37849.0,0.0003]
[1643955052791,0.27270435,37850.0,37849.0,0.0003]
[1643955053191,0.27672398,37850.0,37849.0,0.0003]
[1643955053391,0.27270435,37850.0,37849.0,0.0003]
[1643955053594,0.66085583,37850.0,37849.0,0.0003]
[1643955053992,0.27672398,37850.0,37849.0,0.75991691]
[1643955055195,0.00401963,37850.0,37849.0,0.75991691]
[1643955056149,0.00401963,37850.0,37849.0,0.80589727]
[1643955056446,0.00401963,37850.0,37849.0,0.75991691]
[1643955059546,0.00401963,37850.0,37849.0,0.75491691]
[1643955060712,0.00401963,37850.0,37849.0,3.99246791]
[1643955062515,0.00401963,37850.0,37849.0,3.98746791]
[1643955064343,1.0,37852.0,37849.0,3.98746791]
[1643955064344,0.04120676,37851.0,37849.0,3.98746791]
[1643955065042,0.04120676,37851.0,37849.0,3.78746791]
[1643955065445,1.1,37852.0,37849.0,3.78746791]
[1643955065644,1.0,37852.0,37849.0,3.78746791]
[1643955065847,1.0,37852.0,37851.0,0.04999999]
[1643955066049,0.24345373,37852.0,37851.0,0.34918592]
[1643955066244,0.24345373,37852.0,37851.0,0.69579992]
[1643955066443,0.24345373,37852.0,37851.0,0.88609615]
[1643955066646,0.24345373,37852.0,37851.0,0.96105032]
[1643955067797,0.00097942,37857.0,37851.0,0.96105032]
[1643955067995,0.00097942,37857.0,37856.0,0.04999999]
[1643955068297,0.0896506,37862.0,37856.0,0.04999999]
[1643955068496,0.0896506,37862.0,37851.0,0.2652504]
[1643955068497,0.00097946,37857.0,37852.0,0.00024734]
[1643955068896,0.27717931,37857.0,37851.0,0.19054357]
[1643955069494,0.09259956,37856.0,37851.0,0.19054357]
[1643955069695,0.09259956,37856.0,37851.0,0.19029623]
[1643955070096,0.09259956,37856.0,37850.0,0.00024734]
[1643955070395,0.37083077,37852.0,37850.0,0.00024734]
[1643955070597,0.37083077,37852.0,37849.0,3.78746791]
[1643955070800,0.1,37863.0,37850.0,0.34391714]
[1643955070997,0.1,37863.0,37851.0,0.04999999]
[1643955070998,0.00097944,37857.0,37851.0,0.04999999]
[1643955071250,0.00097944,37857.0,37854.0,0.20801652]
[1643955071747,0.37244933,37858.0,37854.0,0.20801652]
[1643955072144,0.00097946,37857.0,37854.0,0.20801652]
[1643955072545,0.00097946,37857.0,37856.0,0.04999999]
[1643955072751,0.00097946,37857.0,37856.0,0.74053113]
[1643955072947,0.31052697,37865.0,37856.0,0.7069498]
[1643955073144,0.31052697,37865.0,37856.0,0.3603358]
[1643955073350,0.00097945,37858.0,37856.0,0.04999999]
[1643955074247,0.30169562,37862.0,37854.0,0.20801652]
[1643955074554,0.39808825,37868.0,37850.0,0.00024734]
[1643955074555,0.00097945,37859.0,37850.0,0.00024734]
[1643955074747,0.00097945,37859.0,37852.0,0.00024734]
[1643955075189,0.00097945,37859.0,37852.0,0.04999999]
[1643955075389,0.22300994,37857.0,37852.0,0.04999999]
[1643955075590,0.27300994,37857.0,37852.0,0.28385269]
[1643955075788,0.2739894,37857.0,37852.0,0.28385269]
[1643955076188,0.31495436,37854.0,37852.0,0.28385269]
[1643955076390,0.31495436,37854.0,37852.0,0.04999999]
[1643955076790,0.1896767,37858.0,37852.0,0.04999999]
[1643955076993,0.00097944,37857.0,37852.0,0.04999999]
[1643955077891,0.10447346,37858.0,37852.0,0.04999999]
[1643955077892,0.22342264,37856.0,37852.0,0.04999999]
[1643955078392,0.00097946,37857.0,37852.0,0.04999999]
[1643955078680,0.00097946,37857.0,37856.0,0.04999999]
[1643955079074,0.44016936,37858.0,37856.0,0.04999999]
[1643955079274,0.33667535,37858.0,37856.0,0.04999999]
[1643955079475,0.33667535,37858.0,37856.0,0.25651029]
[1643955079778,0.33667535,37858.0,37856.0,0.04999999]
[1643955080273,0.3356959,37858.0,37856.0,0.04999999]
[1643955080475,0.3356959,37858.0,37851.0,0.27283979]
[1643955080777,0.3356959,37858.0,37852.0,0.24947732]
[1643955081375,0.3356959,37858.0,37851.0,0.29241028]
[1643955081376,0.30874181,37855.0,37851.0,0.01957049]
[1643955081575,0.3356959,37858.0,37851.0,0.06957048]
[1643955081774,0.00097947,37857.0,37851.0,0.06957048]
[1643955082075,0.00097947,37857.0,37851.0,0.01957049]
[1643955082076,0.05097947,37857.0,37851.0,0.01957049]
[1643955082495,0.00097947,37857.0,37851.0,0.25092508]
[1643955082692,0.22640287,37853.0,37851.0,0.25092508]
[1643955082891,0.00097946,37857.0,37851.0,0.01957049]
[1643955083093,0.39208351,37852.0,37851.0,0.01957049]
[1643955083291,0.39208351,37852.0,37850.0,0.00024734]
[1643955083492,0.08168696,37852.0,37850.0,0.00024734]
[1643955083693,0.08168696,37852.0,37849.0,3.78746791]
[1643955083894,0.08168696,37852.0,37850.0,0.20633963]
[1643955084091,0.08168696,37852.0,37850.0,0.42917943]
[1643955084293,0.08168696,37852.0,37849.0,4.01030771]
[1643955084493,0.08168696,37852.0,37849.0,3.78746791]
[1643955084694,0.08168696,37852.0,37849.0,4.01030771]
[1643955084895,0.08168696,37852.0,37850.0,0.2228398]
[1643955085495,0.08168696,37852.0,37849.0,4.01030771]
[1643955086147,0.08168696,37852.0,37850.0,0.2228398]
[1643955087142,0.08168696,37852.0,37849.0,4.01030771]
[1643955087746,0.08168696,37852.0,37849.0,3.78746791]
[1643955087950,0.18168696,37852.0,37849.0,3.78746791]